[Event "Titled Tuesday Blitz August 10 2021"]
[White "Ivanchuk, Vasyl"]
[Black "Nazaretyan, Tigran"]
[WhiteFideId "14100010"]
[BlackFideId "24162345"]
[WhiteElo "2710"]
[BlackElo "2167"]
[Result "1-0"]
[Round "11"]
[TimeControl "180+1"]
[Date "2021.08.10"]
[WhiteClock "0:00:08"]
[BlackClock "0:00:08"]

1. e4 {[%clk 0:03:00]}  c5 {[%clk 0:02:59]} 2. Nf3 {[%clk 0:02:59]}  Nc6 {[%clk 0:02:58]} 3. d4 {[%clk 0:02:59]}  cxd4 {[%clk 0:02:58]} 4. Nxd4 {[%clk 0:02:59]}  Nf6 {[%clk 0:02:59]} 5. Nc3 {[%clk 0:02:59]}  d6 {[%clk 0:02:59]} 6. Bg5 {[%clk 0:02:58]}  e6 {[%clk 0:02:59]} 7. Qd2 {[%clk 0:02:58]}  a6 {[%clk 0:02:59]} 8. O-O-O {[%clk 0:02:58]}  Bd7 {[%clk 0:02:59]} 9. f4 {[%clk 0:02:57]}  h6 {[%clk 0:02:59]} 10. Bh4 {[%clk 0:02:56]}  g5 {[%clk 0:03:00]} 11. fxg5 {[%clk 0:02:56]}  Ng4 {[%clk 0:03:00]} 12. Be2 {[%clk 0:02:49]}  Nge5 {[%clk 0:02:59]} 13. Nf3 {[%clk 0:02:49]}  Be7 {[%clk 0:02:56]} 14. Rdg1 {[%clk 0:02:44]}  Rg8 {[%clk 0:02:51]} 15. Kb1 {[%clk 0:02:38]}  hxg5 {[%clk 0:02:51]} 16. Bg3 {[%clk 0:02:39]}  Qa5 {[%clk 0:02:46]} 17. Rd1 {[%clk 0:02:37]}  O-O-O {[%clk 0:02:45]} 18. Rhf1 {[%clk 0:02:37]}  f6 {[%clk 0:02:42]} 19. Nxe5 {[%clk 0:02:30]}  dxe5 {[%clk 0:02:36]} 20. Bc4 {[%clk 0:02:25]}  Kb8 {[%clk 0:02:24]} 21. Bb3 {[%clk 0:02:12]}  Ka8 {[%clk 0:02:20]} 22. Ne2 {[%clk 0:02:11]}  Qb6 {[%clk 0:02:10]} 23. Bf2 {[%clk 0:02:05]}  Qc7 {[%clk 0:02:08]} 24. Qe3 {[%clk 0:02:00]}  Rh8 {[%clk 0:02:06]} 25. h3 {[%clk 0:01:59]}  Kb8 {[%clk 0:01:48]} 26. Rd2 {[%clk 0:01:52]}  Bc8 {[%clk 0:01:45]} 27. Rfd1 {[%clk 0:01:50]}  Rxd2 {[%clk 0:01:45]} 28. Rxd2 {[%clk 0:01:50]}  Rd8 {[%clk 0:01:46]} 29. Rxd8 {[%clk 0:01:36]}  Qxd8 {[%clk 0:01:44]} 30. c3 {[%clk 0:01:36]}  Qd6 {[%clk 0:01:20]} 31. Kc2 {[%clk 0:01:34]}  Na5 {[%clk 0:01:11]} 32. Nc1 {[%clk 0:01:11]}  Bd7 {[%clk 0:01:10]} 33. Nd3 {[%clk 0:01:03]}  Bb5 {[%clk 0:01:05]} 34. Qa7+ {[%clk 0:00:55]}  Kc7 {[%clk 0:00:57]} 35. Nc5 {[%clk 0:00:55]}  Bd7 {[%clk 0:00:35]} 36. Nxd7 {[%clk 0:00:37]}  Kxd7 {[%clk 0:00:32]} 37. Ba4+ {[%clk 0:00:32]}  Kc7 {[%clk 0:00:29]} 38. Qe3 {[%clk 0:00:29]}  b5 {[%clk 0:00:24]} 39. Qa7+ {[%clk 0:00:28]}  Nb7 {[%clk 0:00:23]} 40. Bb3 {[%clk 0:00:28]}  Qc6 {[%clk 0:00:22]} 41. Kd3 {[%clk 0:00:27]}  Bc5 {[%clk 0:00:21]} 42. Bxc5 {[%clk 0:00:25]}  Qxc5 {[%clk 0:00:21]} 43. Qxa6 {[%clk 0:00:26]}  Qf2 {[%clk 0:00:16]} 44. Qxb5 {[%clk 0:00:14]}  Nc5+ {[%clk 0:00:16]} 45. Kc4 {[%clk 0:00:13]}  Nxe4 {[%clk 0:00:15]} 46. Qa5+ {[%clk 0:00:13]}  Kd6 {[%clk 0:00:14]} 47. Qb4+ {[%clk 0:00:12]}  Kc7 {[%clk 0:00:12]} 48. Qe7+ {[%clk 0:00:12]}  Kb8 {[%clk 0:00:12]} 49. Qd8+ {[%clk 0:00:11]}  Ka7 {[%clk 0:00:11]} 50. Qc7+ {[%clk 0:00:11]}  Ka6 {[%clk 0:00:10]} 51. Qc6+ {[%clk 0:00:10]}  Ka7 {[%clk 0:00:10]} 52. Qxe4 {[%clk 0:00:10]}  Qxb2 {[%clk 0:00:10]} 53. Qe3+ {[%clk 0:00:09]}  Kb7 {[%clk 0:00:10]} 54. Kb5 {[%clk 0:00:09]}  Qa3 {[%clk 0:00:07]} 55. Qb6+ {[%clk 0:00:09]}  Kc8 {[%clk 0:00:07]} 56. Qxe6+ {[%clk 0:00:08]}  Kb7 {[%clk 0:00:07]} 57. Qc6+ {[%clk 0:00:08]}  Ka7 {[%clk 0:00:07]} 58. Qb6+ {[%clk 0:00:08]}  Ka8 {[%clk 0:00:08]} 59. Bd5# {[%clk 0:00:08]} 1-0


[Site "https://www.chess.com"]

[Event "Titled Tuesday Blitz August 10 2021"]
[White "Kezin, Roman"]
[Black "Bok, Benjamin"]
[WhiteFideId "24124621"]
[BlackFideId "1017063"]
[WhiteElo "2570"]
[BlackElo "2658"]
[Result "1-0"]
[Round "11"]
[TimeControl "180+1"]
[Date "2021.08.10"]
[WhiteClock "0:00:07"]
[BlackClock "0:00:01"]

1. d4 {[%clk 0:03:00]}  Nf6 {[%clk 0:02:59]} 2. c4 {[%clk 0:03:01]}  e6 {[%clk 0:03:00]} 3. g3 {[%clk 0:03:01]}  c5 {[%clk 0:02:57]} 4. d5 {[%clk 0:03:01]}  exd5 {[%clk 0:02:58]} 5. cxd5 {[%clk 0:03:02]}  d6 {[%clk 0:02:59]} 6. Nc3 {[%clk 0:03:02]}  g6 {[%clk 0:02:59]} 7. Nf3 {[%clk 0:03:03]}  Bg7 {[%clk 0:03:00]} 8. Bg2 {[%clk 0:03:03]}  O-O {[%clk 0:03:00]} 9. O-O {[%clk 0:03:04]}  Re8 {[%clk 0:03:01]} 10. Nd2 {[%clk 0:03:01]}  a6 {[%clk 0:02:36]} 11. a4 {[%clk 0:03:01]}  Nbd7 {[%clk 0:02:37]} 12. h3 {[%clk 0:03:01]}  Rb8 {[%clk 0:02:35]} 13. Nc4 {[%clk 0:02:59]}  Ne5 {[%clk 0:02:20]} 14. Na3 {[%clk 0:02:59]}  Qc7 {[%clk 0:01:36]} 15. f4 {[%clk 0:02:55]}  Ned7 {[%clk 0:01:36]} 16. e4 {[%clk 0:02:56]}  c4 {[%clk 0:01:31]} 17. Be3 {[%clk 0:02:52]}  Nc5 {[%clk 0:01:23]} 18. e5 {[%clk 0:02:48]}  Nb3 {[%clk 0:00:52]} 19. Rb1 {[%clk 0:01:45]}  Bf5 {[%clk 0:00:52]} 20. exf6 {[%clk 0:01:29]}  Rxe3 {[%clk 0:00:52]} 21. fxg7 {[%clk 0:01:29]}  Bxb1 {[%clk 0:00:40]} 22. Naxb1 {[%clk 0:01:20]}  Rxg3 {[%clk 0:00:27]} 23. f5 {[%clk 0:01:20]}  Re8 {[%clk 0:00:24]} 24. Kh2 {[%clk 0:01:19]}  Rd3 {[%clk 0:00:23]} 25. Qg4 {[%clk 0:01:18]}  Qe7 {[%clk 0:00:19]} 26. Ne4 {[%clk 0:01:00]}  Qe5+ {[%clk 0:00:10]} 27. Kh1 {[%clk 0:01:00]}  Rd4 {[%clk 0:00:06]} 28. fxg6 {[%clk 0:01:00]}  hxg6 {[%clk 0:00:05]} 29. Nbc3 {[%clk 0:01:00]}  Nc5 {[%clk 0:00:04]} 30. Nf6+ {[%clk 0:00:58]}  Qxf6 {[%clk 0:00:03]} 31. Rxf6 {[%clk 0:00:58]}  Rxg4 {[%clk 0:00:03]} 32. hxg4 {[%clk 0:00:58]}  Rd8 {[%clk 0:00:04]} 33. Rf4 {[%clk 0:00:51]}  Kxg7 {[%clk 0:00:03]} 34. Rxc4 {[%clk 0:00:52]}  Nd3 {[%clk 0:00:04]} 35. Rc7 {[%clk 0:00:49]}  b5 {[%clk 0:00:03]} 36. axb5 {[%clk 0:00:49]}  axb5 {[%clk 0:00:04]} 37. Nxb5 {[%clk 0:00:47]}  Kf6 {[%clk 0:00:04]} 38. b3 {[%clk 0:00:37]}  Nf2+ {[%clk 0:00:04]} 39. Kg1 {[%clk 0:00:37]}  Nxg4 {[%clk 0:00:05]} 40. Nd4 {[%clk 0:00:32]}  Ra8 {[%clk 0:00:04]} 41. Rc1 {[%clk 0:00:29]}  Ra2 {[%clk 0:00:03]} 42. b4 {[%clk 0:00:28]}  Rb2 {[%clk 0:00:03]} 43. Rf1+ {[%clk 0:00:17]}  Kg7 {[%clk 0:00:01]} 44. Nc6 {[%clk 0:00:15]}  Ne3 {[%clk 0:00:01]} 45. Rf2 {[%clk 0:00:16]}  Rb1+ {[%clk 0:00:02]} 46. Bf1 {[%clk 0:00:16]}  f5 {[%clk 0:00:02]} 47. Rf3 {[%clk 0:00:14]}  Ng4 {[%clk 0:00:01]} 48. Kg2 {[%clk 0:00:07]} 1-0


[Site "https://www.chess.com"]

[Event "Titled Tuesday Blitz August 10 2021"]
[White "Khusnutdinov, Rustam"]
[Black "Dang, Hoang Son"]
[WhiteFideId "13701703"]
[BlackFideId "12402435"]
[WhiteElo "2571"]
[BlackElo "2248"]
[Result "1-0"]
[Round "11"]
[TimeControl "180+1"]
[Date "2021.08.10"]
[WhiteClock "0:01:10"]
[BlackClock "0:00:05"]

1. d4 {[%clk 0:03:00]}  Nf6 {[%clk 0:02:59]} 2. c4 {[%clk 0:02:58]}  g6 {[%clk 0:03:00]} 3. Nc3 {[%clk 0:02:58]}  Bg7 {[%clk 0:03:01]} 4. e4 {[%clk 0:02:58]}  O-O {[%clk 0:03:02]} 5. Nge2 {[%clk 0:02:59]}  d6 {[%clk 0:03:02]} 6. Ng3 {[%clk 0:02:59]}  e5 {[%clk 0:03:02]} 7. d5 {[%clk 0:03:00]}  Ne8 {[%clk 0:02:51]} 8. Bd3 {[%clk 0:02:47]}  f5 {[%clk 0:02:51]} 9. exf5 {[%clk 0:02:40]}  gxf5 {[%clk 0:02:52]} 10. Nh5 {[%clk 0:02:41]}  e4 {[%clk 0:02:49]} 11. Nxg7 {[%clk 0:02:37]}  exd3 {[%clk 0:02:40]} 12. Nh5 {[%clk 0:02:33]}  Qh4 {[%clk 0:02:39]} 13. Nf4 {[%clk 0:02:30]}  Na6 {[%clk 0:02:28]} 14. O-O {[%clk 0:02:26]}  Nc5 {[%clk 0:02:24]} 15. b3 {[%clk 0:02:25]}  a5 {[%clk 0:02:14]} 16. Nxd3 {[%clk 0:02:24]}  Ne4 {[%clk 0:02:08]} 17. Bb2 {[%clk 0:02:23]}  N8f6 {[%clk 0:02:07]} 18. f3 {[%clk 0:02:21]}  Ng5 {[%clk 0:02:01]} 19. Ne2 {[%clk 0:02:13]}  Bd7 {[%clk 0:01:50]} 20. Qe1 {[%clk 0:02:13]}  Qh6 {[%clk 0:01:43]} 21. Qg3 {[%clk 0:02:12]}  Kh8 {[%clk 0:01:04]} 22. Qf4 {[%clk 0:01:54]}  Qg6 {[%clk 0:00:47]} 23. Ng3 {[%clk 0:01:45]}  Kg8 {[%clk 0:00:42]} 24. Rae1 {[%clk 0:01:42]}  Rae8 {[%clk 0:00:35]} 25. Qd4 {[%clk 0:01:41]}  Kf7 {[%clk 0:00:25]} 26. Nf4 {[%clk 0:01:40]}  Qh6 {[%clk 0:00:25]} 27. h4 {[%clk 0:01:28]}  Rxe1 {[%clk 0:00:13]} 28. Rxe1 {[%clk 0:01:29]}  Nxf3+ {[%clk 0:00:12]} 29. gxf3 {[%clk 0:01:30]}  Rg8 {[%clk 0:00:12]} 30. Qxf6+ {[%clk 0:01:29]}  Qxf6 {[%clk 0:00:11]} 31. Bxf6 {[%clk 0:01:30]}  Rxg3+ {[%clk 0:00:12]} 32. Kf2 {[%clk 0:01:28]}  Rg8 {[%clk 0:00:09]} 33. Re7+ {[%clk 0:01:16]}  Kxf6 {[%clk 0:00:09]} 34. Rxd7 {[%clk 0:01:17]}  Ke5 {[%clk 0:00:09]} 35. Ke3 {[%clk 0:01:14]}  Re8 {[%clk 0:00:06]} 36. Rxc7 {[%clk 0:01:13]}  b6 {[%clk 0:00:06]} 37. Rxh7 {[%clk 0:01:12]}  a4 {[%clk 0:00:06]} 38. Rh6 {[%clk 0:01:10]}  axb3 {[%clk 0:00:05]} 39. Nd3# {[%clk 0:01:10]} 1-0


[Site "https://www.chess.com"]

[Event "Titled Tuesday Blitz August 10 2021"]
[White "Kollars, Dmitrij"]
[Black "Maze, Sebastien"]
[WhiteFideId "12909572"]
[BlackFideId "613762"]
[WhiteElo "2576"]
[BlackElo "2462"]
[Result "1-0"]
[Round "11"]
[TimeControl "180+1"]
[Date "2021.08.10"]
[WhiteClock "0:00:20"]
[BlackClock "0:00:27"]

1. c4 {[%clk 0:03:00]}  Nf6 {[%clk 0:02:57]} 2. Nc3 {[%clk 0:02:58]}  g6 {[%clk 0:02:56]} 3. g3 {[%clk 0:02:56]}  Bg7 {[%clk 0:02:56]} 4. Bg2 {[%clk 0:02:57]}  O-O {[%clk 0:02:56]} 5. Nf3 {[%clk 0:02:57]}  d6 {[%clk 0:02:54]} 6. O-O {[%clk 0:02:56]}  e5 {[%clk 0:02:52]} 7. d4 {[%clk 0:02:56]}  Nc6 {[%clk 0:02:48]} 8. dxe5 {[%clk 0:02:54]}  Nxe5 {[%clk 0:02:48]} 9. b3 {[%clk 0:02:42]}  Nxf3+ {[%clk 0:02:45]} 10. Bxf3 {[%clk 0:02:42]}  Bh3 {[%clk 0:02:45]} 11. Re1 {[%clk 0:02:41]}  c6 {[%clk 0:02:44]} 12. Bb2 {[%clk 0:02:41]}  Re8 {[%clk 0:02:39]} 13. Qd2 {[%clk 0:02:39]}  Re6 {[%clk 0:02:35]} 14. Rad1 {[%clk 0:02:37]}  Qe7 {[%clk 0:02:25]} 15. Qf4 {[%clk 0:02:31]}  Nd7 {[%clk 0:02:12]} 16. Na4 {[%clk 0:02:02]}  Bxb2 {[%clk 0:02:06]} 17. Nxb2 {[%clk 0:02:03]}  Re8 {[%clk 0:02:00]} 18. Nd3 {[%clk 0:01:48]}  Ne5 {[%clk 0:01:53]} 19. Nxe5 {[%clk 0:01:45]}  dxe5 {[%clk 0:01:53]} 20. Qe3 {[%clk 0:01:30]}  e4 {[%clk 0:01:52]} 21. Bg2 {[%clk 0:01:30]}  Bxg2 {[%clk 0:01:52]} 22. Kxg2 {[%clk 0:01:31]}  Qa3 {[%clk 0:01:49]} 23. Rd2 {[%clk 0:01:30]}  a5 {[%clk 0:01:46]} 24. Red1 {[%clk 0:01:26]}  a4 {[%clk 0:01:47]} 25. h4 {[%clk 0:01:26]}  h5 {[%clk 0:01:46]} 26. Rd7 {[%clk 0:01:19]}  axb3 {[%clk 0:01:42]} 27. axb3 {[%clk 0:01:20]}  R6e7 {[%clk 0:01:39]} 28. R1d4 {[%clk 0:01:13]}  Qb4 {[%clk 0:01:28]} 29. Rd8 {[%clk 0:00:57]}  Qb6 {[%clk 0:01:00]} 30. Rxe8+ {[%clk 0:00:41]}  Rxe8 {[%clk 0:00:59]} 31. Rxe4 {[%clk 0:00:32]}  Qxe3 {[%clk 0:00:51]} 32. Rxe3 {[%clk 0:00:33]}  Rxe3 {[%clk 0:00:42]} 33. fxe3 {[%clk 0:00:34]}  Kg7 {[%clk 0:00:42]} 34. Kf3 {[%clk 0:00:35]}  Kf6 {[%clk 0:00:42]} 35. Kf4 {[%clk 0:00:34]}  Ke6 {[%clk 0:00:42]} 36. e4 {[%clk 0:00:26]}  f6 {[%clk 0:00:36]} 37. c5 {[%clk 0:00:22]}  Ke7 {[%clk 0:00:27]} 38. e5 {[%clk 0:00:20]} 1-0


[Site "https://www.chess.com"]

[Event "Titled Tuesday Blitz August 10 2021"]
[White "Mortazavi, Ali"]
[Black "Mirzoev, Azer"]
[WhiteFideId "401323"]
[BlackFideId "13400304"]
[WhiteElo "2339"]
[BlackElo "2525"]
[Result "0-1"]
[Round "11"]
[TimeControl "180+1"]
[Date "2021.08.10"]
[WhiteClock "0:00:08"]
[BlackClock "0:00:48"]

1. e4 {[%clk 0:03:00]}  c6 {[%clk 0:03:00]} 2. d4 {[%clk 0:02:56]}  d5 {[%clk 0:03:00]} 3. Nc3 {[%clk 0:02:57]}  dxe4 {[%clk 0:02:59]} 4. f3 {[%clk 0:02:58]}  exf3 {[%clk 0:02:55]} 5. Nxf3 {[%clk 0:02:58]}  Bg4 {[%clk 0:02:54]} 6. Be2 {[%clk 0:02:48]}  Nf6 {[%clk 0:02:53]} 7. Be3 {[%clk 0:02:43]}  e6 {[%clk 0:02:49]} 8. Ne5 {[%clk 0:02:43]}  Bxe2 {[%clk 0:02:47]} 9. Qxe2 {[%clk 0:02:42]}  Nbd7 {[%clk 0:02:45]} 10. O-O {[%clk 0:02:30]}  Be7 {[%clk 0:02:41]} 11. Rad1 {[%clk 0:02:29]}  O-O {[%clk 0:02:40]} 12. Bf4 {[%clk 0:02:22]}  Nd5 {[%clk 0:02:39]} 13. Bg3 {[%clk 0:02:17]}  N7f6 {[%clk 0:02:26]} 14. Kh1 {[%clk 0:02:16]}  Nxc3 {[%clk 0:02:21]} 15. bxc3 {[%clk 0:02:16]}  c5 {[%clk 0:02:09]} 16. Bh4 {[%clk 0:01:58]}  cxd4 {[%clk 0:02:02]} 17. Rxd4 {[%clk 0:01:51]}  Nd5 {[%clk 0:02:00]} 18. c4 {[%clk 0:01:30]}  Bxh4 {[%clk 0:01:48]} 19. cxd5 {[%clk 0:01:28]}  exd5 {[%clk 0:01:47]} 20. Qd3 {[%clk 0:00:20]}  Qe7 {[%clk 0:01:33]} 21. Rxd5 {[%clk 0:00:18]}  Rad8 {[%clk 0:01:31]} 22. Nd7 {[%clk 0:00:18]}  Rfe8 {[%clk 0:01:17]} 23. g3 {[%clk 0:00:18]}  Bg5 {[%clk 0:01:12]} 24. Rd1 {[%clk 0:00:14]}  Rc8 {[%clk 0:00:57]} 25. h4 {[%clk 0:00:11]}  Bf6 {[%clk 0:00:56]} 26. Rf1 {[%clk 0:00:08]}  Rc6 {[%clk 0:00:48]} 0-1


[Site "https://www.chess.com"]

[Event "Titled Tuesday Blitz August 10 2021"]
[White "Nakamura, Hikaru"]
[Black "Timofeev, Artyom"]
[WhiteFideId "2016192"]
[BlackFideId "4140419"]
[WhiteElo "2900"]
[BlackElo "2582"]
[Result "1-0"]
[Round "11"]
[TimeControl "180+1"]
[Date "2021.08.10"]
[WhiteClock "0:00:18"]
[BlackClock "0:00:05"]

1. e4 {[%clk 0:03:00]}  c5 {[%clk 0:02:59]} 2. Nf3 {[%clk 0:02:55]}  Nc6 {[%clk 0:02:59]} 3. c3 {[%clk 0:02:54]}  d5 {[%clk 0:02:54]} 4. exd5 {[%clk 0:02:54]}  Qxd5 {[%clk 0:02:54]} 5. Na3 {[%clk 0:02:55]}  Bf5 {[%clk 0:02:53]} 6. Nc4 {[%clk 0:02:48]}  Nf6 {[%clk 0:02:45]} 7. Ne3 {[%clk 0:02:47]}  Qd7 {[%clk 0:02:45]} 8. Nxf5 {[%clk 0:02:44]}  Qxf5 {[%clk 0:02:45]} 9. d4 {[%clk 0:02:44]}  O-O-O {[%clk 0:02:39]} 10. Bd3 {[%clk 0:02:29]}  Qe6+ {[%clk 0:02:38]} 11. Be3 {[%clk 0:02:29]}  Nd5 {[%clk 0:02:35]} 12. Qe2 {[%clk 0:01:54]}  cxd4 {[%clk 0:02:28]} 13. Nxd4 {[%clk 0:01:52]}  Nxd4 {[%clk 0:02:27]} 14. Bxd4 {[%clk 0:01:53]}  Qxe2+ {[%clk 0:02:24]} 15. Bxe2 {[%clk 0:01:54]}  a6 {[%clk 0:02:20]} 16. O-O-O {[%clk 0:01:51]}  e6 {[%clk 0:02:16]} 17. Bf3 {[%clk 0:01:48]}  Rg8 {[%clk 0:02:02]} 18. c4 {[%clk 0:01:46]}  Nb4 {[%clk 0:01:58]} 19. a3 {[%clk 0:01:38]}  Nc6 {[%clk 0:01:58]} 20. Be3 {[%clk 0:01:35]}  Be7 {[%clk 0:01:54]} 21. b4 {[%clk 0:01:30]}  Ne5 {[%clk 0:01:47]} 22. Be2 {[%clk 0:01:29]}  Rxd1+ {[%clk 0:01:43]} 23. Rxd1 {[%clk 0:01:29]}  Rd8 {[%clk 0:01:44]} 24. Rxd8+ {[%clk 0:01:25]}  Kxd8 {[%clk 0:01:42]} 25. Kc2 {[%clk 0:01:25]}  g5 {[%clk 0:01:41]} 26. c5 {[%clk 0:01:14]}  f5 {[%clk 0:01:35]} 27. h3 {[%clk 0:01:10]}  Kd7 {[%clk 0:01:33]} 28. Bd4 {[%clk 0:01:05]}  Bf6 {[%clk 0:01:28]} 29. Kc3 {[%clk 0:00:48]}  Kc7 {[%clk 0:01:23]} 30. a4 {[%clk 0:00:38]}  h6 {[%clk 0:01:04]} 31. Bc4 {[%clk 0:00:31]}  Kd7 {[%clk 0:00:58]} 32. b5 {[%clk 0:00:31]}  axb5 {[%clk 0:00:58]} 33. axb5 {[%clk 0:00:31]}  Ke7 {[%clk 0:00:54]} 34. Be2 {[%clk 0:00:30]}  Kd7 {[%clk 0:00:46]} 35. g3 {[%clk 0:00:20]}  f4 {[%clk 0:00:44]} 36. Bd1 {[%clk 0:00:19]}  fxg3 {[%clk 0:00:39]} 37. fxg3 {[%clk 0:00:19]}  Kc7 {[%clk 0:00:38]} 38. Bb3 {[%clk 0:00:18]}  Kd7 {[%clk 0:00:38]} 39. Bc2 {[%clk 0:00:18]}  Kc7 {[%clk 0:00:38]} 40. b6+ {[%clk 0:00:15]}  Kd7 {[%clk 0:00:35]} 41. Be4 {[%clk 0:00:15]}  Kc8 {[%clk 0:00:35]} 42. Kb3 {[%clk 0:00:15]}  Nd7 {[%clk 0:00:23]} 43. Be3 {[%clk 0:00:15]}  Ne5 {[%clk 0:00:22]} 44. Kb4 {[%clk 0:00:15]}  Nd7 {[%clk 0:00:22]} 45. Kb5 {[%clk 0:00:15]}  Be5 {[%clk 0:00:21]} 46. Bf2 {[%clk 0:00:13]}  Nf6 {[%clk 0:00:21]} 47. Bf3 {[%clk 0:00:13]}  Bc3 {[%clk 0:00:15]} 48. c6 {[%clk 0:00:13]}  bxc6+ {[%clk 0:00:15]} 49. Bxc6 {[%clk 0:00:13]}  Kb8 {[%clk 0:00:14]} 50. Bc5 {[%clk 0:00:12]}  Be5 {[%clk 0:00:13]} 51. g4 {[%clk 0:00:13]}  h5 {[%clk 0:00:13]} 52. Bf3 {[%clk 0:00:12]}  hxg4 {[%clk 0:00:13]} 53. hxg4 {[%clk 0:00:13]}  Nd7 {[%clk 0:00:13]} 54. Bf2 {[%clk 0:00:13]}  Bf4 {[%clk 0:00:13]} 55. Bd4 {[%clk 0:00:13]}  Ne5 {[%clk 0:00:11]} 56. Be2 {[%clk 0:00:13]}  Nf7 {[%clk 0:00:11]} 57. Kc6 {[%clk 0:00:12]}  Nd8+ {[%clk 0:00:10]} 58. Kd7 {[%clk 0:00:12]}  Nb7 {[%clk 0:00:07]} 59. Kxe6 {[%clk 0:00:12]}  Na5 {[%clk 0:00:08]} 60. Bf3 {[%clk 0:00:11]}  Nc4 {[%clk 0:00:07]} 61. Kd5 {[%clk 0:00:10]}  Ne3+ {[%clk 0:00:07]} 62. Kc6 {[%clk 0:00:10]}  Nc4 {[%clk 0:00:07]} 63. Be2 {[%clk 0:00:11]}  Na5+ {[%clk 0:00:07]} 64. Kb5 {[%clk 0:00:11]}  Nb7 {[%clk 0:00:07]} 65. Bf3 {[%clk 0:00:11]}  Nd6+ {[%clk 0:00:07]} 66. Ka6 {[%clk 0:00:11]}  Nc4 {[%clk 0:00:07]} 67. Bc5 {[%clk 0:00:11]}  Be3 {[%clk 0:00:07]} 68. Kb5 {[%clk 0:00:10]}  Bxc5 {[%clk 0:00:07]} 69. Kxc5 {[%clk 0:00:11]}  Ne5 {[%clk 0:00:07]} 70. Be2 {[%clk 0:00:10]}  Kb7 {[%clk 0:00:07]} 71. Kb5 {[%clk 0:00:11]}  Kb8 {[%clk 0:00:05]} 72. Ka6 {[%clk 0:00:10]}  Nc6 {[%clk 0:00:04]} 73. Bf3 {[%clk 0:00:10]}  Nd4 {[%clk 0:00:04]} 74. Be4 {[%clk 0:00:09]}  Ne6 {[%clk 0:00:04]} 75. Kb5 {[%clk 0:00:09]}  Nd4+ {[%clk 0:00:04]} 76. Kc5 {[%clk 0:00:10]}  Ne2 {[%clk 0:00:04]} 77. Kd6 {[%clk 0:00:09]}  Nc3 {[%clk 0:00:04]} 78. Ke5 {[%clk 0:00:10]}  Na4 {[%clk 0:00:04]} 79. b7 {[%clk 0:00:10]}  Nc5 {[%clk 0:00:04]} 80. Bf3 {[%clk 0:00:10]}  Kc7 {[%clk 0:00:04]} 81. Kf5 {[%clk 0:00:11]}  Nd7 {[%clk 0:00:02]} 82. Kxg5 {[%clk 0:00:11]}  Ne5 {[%clk 0:00:03]} 83. Bg2 {[%clk 0:00:10]}  Kb8 {[%clk 0:00:02]} 84. Kf5 {[%clk 0:00:10]}  Nxg4 {[%clk 0:00:02]} 85. Kxg4 {[%clk 0:00:11]}  Kc7 {[%clk 0:00:02]} 86. Kf5 {[%clk 0:00:12]}  Kb8 {[%clk 0:00:03]} 87. Ke5 {[%clk 0:00:13]}  Kc7 {[%clk 0:00:03]} 88. Kd4 {[%clk 0:00:14]}  Kb8 {[%clk 0:00:04]} 89. Kc5 {[%clk 0:00:15]}  Kc7 {[%clk 0:00:04]} 90. Kb5 {[%clk 0:00:15]}  Kb8 {[%clk 0:00:05]} 91. Ka6 {[%clk 0:00:16]}  Kc7 {[%clk 0:00:05]} 92. Ka7 {[%clk 0:00:17]}  Kd6 {[%clk 0:00:05]} 93. b8=Q+ {[%clk 0:00:18]} 1-0


[Site "https://www.chess.com"]

[Event "Titled Tuesday Blitz August 10 2021"]
[White "Nesterov, Arseniy"]
[Black "Chirila, Ioan-Cristian"]
[WhiteFideId "24198455"]
[BlackFideId "1211668"]
[WhiteElo "2477"]
[BlackElo "2445"]
[Result "1-0"]
[Round "11"]
[TimeControl "180+1"]
[Date "2021.08.10"]
[WhiteClock "0:02:27"]
[BlackClock "0:00:02"]

1. d4 {[%clk 0:03:00]}  Nf6 {[%clk 0:02:59]} 2. c4 {[%clk 0:03:01]}  g6 {[%clk 0:02:57]} 3. Nc3 {[%clk 0:03:01]}  d5 {[%clk 0:02:57]} 4. cxd5 {[%clk 0:03:01]}  Nxd5 {[%clk 0:02:58]} 5. e4 {[%clk 0:03:01]}  Nxc3 {[%clk 0:02:58]} 6. bxc3 {[%clk 0:03:02]}  Bg7 {[%clk 0:02:58]} 7. Qa4+ {[%clk 0:03:03]}  Nd7 {[%clk 0:02:57]} 8. Nf3 {[%clk 0:03:02]}  O-O {[%clk 0:02:57]} 9. Be2 {[%clk 0:03:02]}  c5 {[%clk 0:02:56]} 10. O-O {[%clk 0:03:02]}  cxd4 {[%clk 0:02:56]} 11. cxd4 {[%clk 0:03:03]}  Nb6 {[%clk 0:02:57]} 12. Qa3 {[%clk 0:03:03]}  Bg4 {[%clk 0:02:55]} 13. Rd1 {[%clk 0:03:02]}  Bxf3 {[%clk 0:02:51]} 14. gxf3 {[%clk 0:03:03]}  Bxd4 {[%clk 0:02:49]} 15. Bg5 {[%clk 0:03:03]}  Bxa1 {[%clk 0:02:34]} 16. Rxd8 {[%clk 0:03:02]}  Rfxd8 {[%clk 0:02:35]} 17. Qxe7 {[%clk 0:03:02]}  Rd7 {[%clk 0:02:24]} 18. Qa3 {[%clk 0:03:01]}  Bd4 {[%clk 0:02:14]} 19. Bb5 {[%clk 0:03:00]}  Rc7 {[%clk 0:02:08]} 20. Qd6 {[%clk 0:03:00]}  Rc5 {[%clk 0:02:08]} 21. h4 {[%clk 0:03:00]}  Bxf2+ {[%clk 0:01:18]} 22. Kxf2 {[%clk 0:03:00]}  Rxb5 {[%clk 0:01:19]} 23. Qd4 {[%clk 0:03:00]}  Rxg5 {[%clk 0:00:21]} 24. hxg5 {[%clk 0:03:01]}  Rc8 {[%clk 0:00:19]} 25. a4 {[%clk 0:02:57]}  Rc6 {[%clk 0:00:07]} 26. a5 {[%clk 0:02:54]}  Nc8 {[%clk 0:00:07]} 27. Qd7 {[%clk 0:02:51]}  Nd6 {[%clk 0:00:05]} 28. e5 {[%clk 0:02:39]}  Nc4 {[%clk 0:00:05]} 29. a6 {[%clk 0:02:30]}  Rxa6 {[%clk 0:00:04]} 30. Qc8+ {[%clk 0:02:29]}  Kg7 {[%clk 0:00:04]} 31. Qxc4 {[%clk 0:02:29]}  Re6 {[%clk 0:00:02]} 32. f4 {[%clk 0:02:27]} 1-0


[Site "https://www.chess.com"]

[Event "Titled Tuesday Blitz August 10 2021"]
[White "Remizov, Yaroslav"]
[Black "Sychev, Klementy"]
[WhiteFideId "34134015"]
[BlackFideId "4114060"]
[WhiteElo "2339"]
[BlackElo "2615"]
[Result "0-1"]
[Round "11"]
[TimeControl "180+1"]
[Date "2021.08.10"]
[WhiteClock "0:00:58"]
[BlackClock "0:01:57"]

1. e4 {[%clk 0:03:00]}  c5 {[%clk 0:02:55]} 2. Nf3 {[%clk 0:03:00]}  d6 {[%clk 0:02:54]} 3. d4 {[%clk 0:03:00]}  cxd4 {[%clk 0:02:55]} 4. Nxd4 {[%clk 0:03:00]}  Nf6 {[%clk 0:02:55]} 5. Nc3 {[%clk 0:03:00]}  g6 {[%clk 0:02:56]} 6. g3 {[%clk 0:02:53]}  Bg4 {[%clk 0:02:50]} 7. Bb5+ {[%clk 0:02:29]}  Nbd7 {[%clk 0:02:44]} 8. f3 {[%clk 0:02:22]}  Bh3 {[%clk 0:02:43]} 9. Be3 {[%clk 0:02:08]}  Bg7 {[%clk 0:02:42]} 10. Qd2 {[%clk 0:02:06]}  O-O {[%clk 0:02:41]} 11. O-O-O {[%clk 0:02:03]}  Ne5 {[%clk 0:02:41]} 12. Kb1 {[%clk 0:01:45]}  Rc8 {[%clk 0:02:39]} 13. Rhe1 {[%clk 0:01:21]}  a6 {[%clk 0:02:36]} 14. Be2 {[%clk 0:01:20]}  b5 {[%clk 0:02:35]} 15. f4 {[%clk 0:01:19]}  b4 {[%clk 0:02:19]} 16. Nd5 {[%clk 0:01:19]}  Nxe4 {[%clk 0:02:15]} 17. Qxb4 {[%clk 0:01:19]}  Rb8 {[%clk 0:02:12]} 18. Qa3 {[%clk 0:00:58]}  Be6 {[%clk 0:01:57]} 0-1


[Site "https://www.chess.com"]